[Event "ETCC Open 2023"]
[Site "Budva"]
[Date "2023.11.14"]
[Round "4.54"]
[White "Glek, Igor"]
[Black "Thybo, Jesper Sondergaard"]
[Result "1/2-1/2"]
[ECO "B31"]
[WhiteElo "2435"]
[BlackElo "2522"]
[Annotator "ChessBase"]
[PlyCount "100"]
[EventDate "2023.11.10"]
[EventType "team-tourn"]
[EventCountry "MNE"]
[SourceTitle "playchess.com"]
[Source "ChessBase"]
[SourceQuality "1"]
[WhiteTeam "Belgium"]
[BlackTeam "Denmark"]
[WhiteTeamCountry "BEL"]
[BlackTeamCountry "DEN"]
[TimeControl "40/5400+30:1800+30"]

1. e4 {[%emt 0:00:04]} c5 {[%emt 0:00:15]} 2. Nf3 {[%emt 0:00:34]} Nc6 {[%emt 0:00:41]} 3. Bb5 {[%emt 0:00:34]} g6 {[%emt 0:00:16]} 4. O-O {[%emt 0:02:35]} Bg7 {[%emt 0:00:24]} 5. c3 {[%emt 0:01:25]} Nf6 {[%emt 0:00:45]} 6. Re1 {[%emt 0:00:06]} O-O {[%emt 0:01:18]} 7. d4 {[%emt 0:03:49]} d5 {[%emt 0:01:01]} 8. e5 {[%emt 0:00:19]} Ne4 {[%emt 0:00:24]} 9. Be3 {[%emt 0:00:23]} cxd4 {[%emt 0:01:14]} 10. cxd4 {[%emt 0:00:06]} Qb6 {[%emt 0:00:31]} 11. Bxc6 {[%emt 0:01:32]} Qxc6 {[%emt 0:00:19]} 12. Ng5 {[%emt 0:09:33]} Nxg5 {[%emt 0:01:49]} 13. Bxg5 {[%emt 0:00:10]} f6 {[%emt 0:00:15]} 14. exf6 {[%emt 0:03:39]} exf6 {[%emt 0:00:31]} 15. Bf4 {[%emt 0:00:13]} g5 {[%emt 0:05:12]} 16. Bg3 {[%emt 0:00:35]} Be6 {[%emt 0:01:22]} 17. Nc3 {[%emt 0:00:05]} Rfe8 {[%emt 0:02:44]} 18. h4 {[%emt 0:03:43]} h6 {[%emt 0:01:15]} 19. hxg5 {[%emt 0:05:03]} hxg5 {[%emt 0:00:16]} 20. Qd2 {[%emt 0:12:43]} Qd7 {[%emt 0:04:32]} 21. Re2 {[%emt 0:02:19]} Bf7 {[%emt 0:04:20]} 22. Rae1 {[%emt 0:02:28]} Rxe2 {[%emt 0:03:05]} 23. Rxe2 {[%emt 0:03:22]} Rc8 {[%emt 0:03:28]} 24. Qd3 {[%emt 0:02:41]} Rc4 {[%emt 0:02:36]} 25. b3 {[%emt 0:05:55]} Rc6 {[%emt 0:03:59]} 26. Re1 {[%emt 0:01:29]} Bf8 {[%emt 0:01:46]} 27. Ne2 {[%emt 0:01:48]} Qc8 {[%emt 0:17:35]} 28. f4 {[%emt 0:01:25]} Qg4 {[%emt 0:00:59]} 29. fxg5 {[%emt 0:01:30]} fxg5 {[%emt 0:00:08]} 30. Rc1 {[%emt 0:12:34]} Bg6 {[%emt 0:05:36]} 31. Qe3 {[%emt 0:00:07]} Rxc1+ {[%emt 0:05:03]} 32. Nxc1 {[%emt 0:00:02]} Bg7 {[%emt 0:06:47]} 33. Ne2 {[%emt 0:01:12]} Bh5 {[%emt 0:06:51]} 34. Kf1 {[%emt 0:03:08]} Kf7 {[%emt 0:05:41]} 35. Bf2 {[%emt 0:01:02]} Bf6 {[%emt 0:03:17]} 36. Nc3 {[%emt 0:02:34]} Qf5 {[%emt 0:00:36]} 37. Kg1 {[%emt 0:02:57]} Qe6 {[%emt 0:05:42]} 38. Qxe6+ {[%emt 0:04:41]} Kxe6 {[%emt 0:00:09]} 39. Be3 {[%emt 0:00:24]} Bf7 {[%emt 0:00:46]} 40. g4 {[%emt 0:01:33]} Bg6 {[%emt 0:01:19]} 41. Kf2 {[%emt 0:30:09]} Bd3 {[%emt 0:30:21]} 42. b4 {[%emt 0:04:27]} Be7 {[%emt 0:01:55]} 43. a3 {[%emt 0:00:08]} Bc4 {[%emt 0:01:18]} 44. Ne2 {[%emt 0:03:57]} a5 {[%emt 0:00:00]} 45. bxa5 {[%emt 0:00:00]} Kd7 {[%emt 0:00:00]} 46. Bc1 {[%emt 0:00:00]} Bb3 {[%emt 0:00:00]} 47. Ng1 {[%emt 0:00:00]} Bd1 {[%emt 0:00:00]} 48. Nf3 {[%emt 0:00:00]} Bf6 {[%emt 0:00:00]} 49. Bxg5 {[%emt 0:00:00]} Bxf3 {[%emt 0:00:00]} 50. Bxf6 {[%emt 0:00:00]} Bxg4 {[%emt 0:00:00]} 1/2-1/2

[Event "ETCC Open 2023"]
[Site "Budva"]
[Date "2023.11.14"]
[Round "4.55"]
[White "Ochsner, Bjorn Moller"]
[Black "Beukema, Jasper"]
[Result "1/2-1/2"]
[ECO "C76"]
[WhiteElo "2534"]
[BlackElo "2357"]
[Annotator "RC"]
[PlyCount "61"]
[EventDate "2023.11.10"]
[EventType "team-tourn"]
[EventCountry "MNE"]
[SourceTitle "playchess.com"]
[Source "ChessBase"]
[SourceQuality "1"]
[WhiteTeam "Denmark"]
[BlackTeam "Belgium"]
[WhiteTeamCountry "DEN"]
[BlackTeamCountry "BEL"]
[TimeControl "40/5400+30:1800+30"]

1. e4 {[%emt 0:00:04]} e5 {[%emt 0:00:04]} 2. Nf3 {[%emt 0:00:14]} Nc6 {[%emt 0:00:04]} 3. Bb5 {[%emt 0:00:08]} g6 {[%emt 0:00:04]} 4. c3 {[%emt 0:00:45]} a6 {[%emt 0:00:06]} 5. Ba4 {[%emt 0:00:13]} d6 {[%emt 0:00:06]} 6. d4 {[%emt 0:01:00]} Bd7 {[%emt 0:00:04]} 7. O-O {[%emt 0:00:49]} Bg7 {[%emt 0:00:23]} 8. Re1 {[%emt 0:01:22]} Nge7 {[%emt 0:00:41]} 9. h3 {[%emt 0:10:39]} O-O {[%emt 0:00:28]} 10. Be3 {[%emt 0:00:38]} h6 {[%emt 0:00:12]} 11. Bb3 {[%emt 0:11:27]} Kh7 {[%emt 0:07:32]} 12. dxe5 {[%emt 0:02:02]} Nxe5 {[%emt 0:01:44]} 13. Nbd2 {[%emt 0:10:14]} Nxf3+ {[%emt 0:11:24]} 14. Nxf3 {[%emt 0:02:00]} Nc6 {[%emt 0:00:08]} 15. a4 {[%emt 0:23:15]} Qe7 {[%emt 0:03:49]} 16. a5 {[%emt 0:02:37]} Ne5 {[%emt 0:02:46]} 17. Nxe5 {[%emt 0:01:12]} Bxe5 {[%emt 0:01:09]} 18. Bd5 {[%emt 0:02:27]} Qh4 {[%emt 0:10:36]} 19. Bd4 {[%emt 0:10:41]} c6 {[%emt 0:03:17]} 20. Bc4 {[%emt 0:01:55]} Rad8 {[%emt 0:00:32]} 21. Bxe5 {[%emt 0:09:55]} dxe5 {[%emt 0:00:05]} 22. Qe2 {[%emt 0:03:46]} Qe7 {[%emt 0:00:39]} 23. Qe3 {[%emt 0:00:54]} Be6 {[%emt 0:01:33]} 24. Bxe6 {[%emt 0:01:23]} Qxe6 {[%emt 0:00:12]} 25. Qb6 {[%emt 0:00:38]} Qe7 {[%emt 0:01:02]} 26. Rad1 {[%emt 0:01:33]} Rd7 {[%emt 0:01:48]} 27. Rxd7 {[%emt 0:00:24]} Qxd7 {[%emt 0:00:02]} 28. Qc5 {[%emt 0:00:33]} Re8 {[%emt 0:00:05]} 29. b4 {[%emt 0:00:31]} Kg7 {[%emt 0:00:28]} 30. Re3 {[%emt 0:00:27]} Re6 {[%emt 0:01:33]} 31. Kh2 {[%emt 0:01:04]} 1/2-1/2

[Event "ETCC Open 2023"]
[Site "Budva"]
[Date "2023.11.14"]
[Round "4.56"]
[White "Lenaerts, Lennert"]
[Black "Rasmussen, Allan Stig"]
[Result "0-1"]
[ECO "D85"]
[WhiteElo "2322"]
[BlackElo "2507"]
[Annotator "ChessBase"]
[PlyCount "72"]
[EventDate "2023.11.10"]
[EventType "team-tourn"]
[EventCountry "MNE"]
[SourceTitle "playchess.com"]
[Source "ChessBase"]
[SourceQuality "1"]
[WhiteTeam "Belgium"]
[BlackTeam "Denmark"]
[WhiteTeamCountry "BEL"]
[BlackTeamCountry "DEN"]
[TimeControl "40/5400+30:1800+30"]

1. d4 {[%emt 0:00:06]} Nf6 {[%emt 0:00:13]} 2. c4 {[%emt 0:00:05]} g6 {[%emt 0:00:14]} 3. Nc3 {[%emt 0:02:00]} d5 {[%emt 0:00:24]} 4. cxd5 {[%emt 0:03:00]} Nxd5 {[%emt 0:00:11]} 5. e4 {[%emt 0:00:31]} Nxc3 {[%emt 0:00:11]} 6. bxc3 {[%emt 0:00:04]} Bg7 {[%emt 0:00:52]} 7. Qa4+ {[%emt 0:01:24]} Qd7 {[%emt 0:05:45]} 8. Qa3 {[%emt 0:00:57]} O-O {[%emt 0:00:32]} 9. Nf3 {[%emt 0:00:13]} b6 {[%emt 0:02:27]} 10. Bd3 {[%emt 0:00:52]} c5 {[%emt 0:05:43]} 11. O-O {[%emt 0:03:58]} Nc6 {[%emt 0:09:47]} 12. Bb5 {[%emt 0:17:09]} a6 {[%emt 0:07:54]} 13. d5 {[%emt 0:03:57]} axb5 {[%emt 0:01:46]} 14. Qxa8 {[%emt 0:00:06]} Na5 {[%emt 0:10:44]} 15. Qb8 {[%emt 0:02:07]} Nc4 {[%emt 0:06:26]} 16. Qg3 {[%emt 0:04:10]} b4 {[%emt 0:09:03]} 17. Nd2 {[%emt 0:17:10]} Ba6 {[%emt 0:02:28]} 18. Nxc4 {[%emt 0:00:40]} Bxc4 {[%emt 0:00:11]} 19. Bd2 {[%emt 0:00:13]} Bxf1 {[%emt 0:04:16]} 20. Rxf1 {[%emt 0:01:20]} e6 {[%emt 0:16:45]} 21. cxb4 {[%emt 0:01:42]} exd5 {[%emt 0:00:17]} 22. bxc5 {[%emt 0:00:23]} bxc5 {[%emt 0:01:22]} 23. exd5 {[%emt 0:00:05]} Qxd5 {[%emt 0:00:08]} 24. Bc3 {[%emt 0:00:10]} Bd4 {[%emt 0:04:15]} 25. Bxd4 {[%emt 0:03:33]} cxd4 {[%emt 0:00:03]} 26. Rd1 {[%emt 0:00:45]} Rc8 {[%emt 0:01:05]} 27. h3 {[%emt 0:08:01]} Rc4 {[%emt 0:01:14]} 28. Rd3 {[%emt 0:07:31]} Qe4 {[%emt 0:03:07]} 29. Qf3 {[%emt 0:10:44]} Qe1+ {[%emt 0:00:31]} 30. Kh2 {[%emt 0:00:04]} Rc3 {[%emt 0:01:55]} 31. a4 {[%emt 0:00:21]} Rxd3 {[%emt 0:02:17]} 32. Qxd3 {[%emt 0:00:01]} Qc3 {[%emt 0:00:24]} 33. Qb1 {[%emt 0:00:18]} d3 {[%emt 0:00:23]} 34. a5 {[%emt 0:00:02]} d2 {[%emt 0:00:34]} 35. a6 {[%emt 0:00:04]} Qe5+ {[%emt 0:00:29]} 36. g3 {[%emt 0:00:50]} Qd4 {[%emt 0:00:31]} 0-1

[Event "ETCC Open 2023"]
[Site "Budva"]
[Date "2023.11.14"]
[Round "4.57"]
[White "Grandelius, Nils"]
[Black "Pasko, Llambi"]
[Result "1/2-1/2"]
[ECO "A11"]
[WhiteElo "2688"]
[BlackElo "2395"]
[Annotator "TA"]
[PlyCount "119"]
[EventDate "2023.11.10"]
[EventType "team-tourn"]
[EventCountry "MNE"]
[SourceTitle "playchess.com"]
[Source "ChessBase"]
[SourceQuality "1"]
[WhiteTeam "Sweden"]
[BlackTeam "Albania"]
[WhiteTeamCountry "SWE"]
[BlackTeamCountry "ALB"]
[TimeControl "40/5400+30:1800+30"]

{[%evp 9,119,14,20,17,15,13,27,18,34,36,57,52,93,82,102,92,85,98,97,95,105,103,105,110,112,116,115,115,134,128,158,155,232,221,271,256,205,119,169,168,303,252,254,0,315,0,281,243,304,246,371,345,452,449,572,291,247,143,140,145,370,304,398,356,763,127,279,256,315,134,828,-32,-26,-30,-44,-47,18,18,16,19,13,20,17,16,7,4,12,12,27,0,0,0,3,0,0,0,0,0,0,0,0,0,0,0,0,0,0,0,0,0,14,0]} 1. Nf3 {[%emt 0:00:31]} d5 {[%emt 0:00:48]} 2. e3 {[%emt 0:01:04]} Nf6 {[%emt 0:00:29]} 3. c4 {[%emt 0:00:31]} c6 {[%emt 0:00:43]} 4. Qc2 {[%emt 0:01:18]} e6 {[%emt 0:01:04]} 5. b3 {[%emt 0:00:43]} Bd6 {[%emt 0:04:45]} 6. Bb2 {[%emt 0:00:21] A11: English Opening: 1...c6.} Nbd7 {[%emt 0:00:17]} 7. d4 {[%emt 0:00:38]} O-O {[%emt 0:01:37]} 8. Bd3 {[%emt 0:00:40] White has an edge.} Re8 {[%emt 0:01:28]} 9. Ne5 {[%emt 0:12:21]} dxc4 {[%emt 0:07:20]} 10. bxc4 {[%emt 0:10:15]} Qa5+ {[%emt 0:00:43]} 11. Bc3 {[%emt 0:01:21]} Bb4 {[%emt 0:00:11]} 12. f4 {[%emt 0:03:46]} c5 {[%emt 0:04:17]} 13. O-O {[%emt 0:01:31]} cxd4 {[%emt 0:01:05]} 14. exd4 {[%emt 0:00:40]} Rd8 {[%emt 0:02:52]} 15. Bb2 {[%emt 0:05:11] [#] White is more active.} Nf8 $146 {[%emt 0:02:33]} ({Predecessor:} 15... Nb8 16. g4 Qb6 17. c5 Qc7 18. g5 Nd5 19. Bxh7+ Kf8 20. Be4 Na6 21. Qb3 b6 {1-0 Vrolijk,L (2464)-Leonard,T (2088) Dortmund NRW Cup U20 49th 2022 (7)}) 16. a3 {[%emt 0:07:50]} Be7 {[%emt 0:00:27]} 17. Nd2 {[%emt 0:00:46]} Bd7 {[%emt 0:00:56]} 18. Ndf3 {[%emt 0:00:40]} Be8 {[%emt 0:01:02]} 19. f5 {[%emt 0:04:07]} Qa4 {[%emt 0:05:55]} 20. Qe2 {[%emt 0:03:29]} h6 {[%emt 0:03:21]} (20... b5 $16 {might work better.}) 21. Kh1 $18 {[%emt 0:03:40]} (21. fxe6 $6 Nxe6 22. g3 Qa5) 21... b5 {[%emt 0:01:31]} 22. fxe6 {[%emt 0:05:16]} (22. cxb5 Rab8 $16) 22... Nxe6 {[%emt 0:00:55] [#]} 23. Ng6 {[%emt 0:01:56] Against Nf4} Bd6 {[%emt 0:00:56]} (23... Bf8 $16) 24. c5 $1 {[%emt 0:04:29]} (24. cxb5 Rab8 $17) 24... Bc7 {[%emt 0:03:58]} (24... Bf8 $142 25. Bf5 Qc4) 25. Ne7+ {[%emt 0:03:32]} Kf8 {[%emt 0:01:02]} 26. Ng6+ {[%emt 0:00:51][%mdl 64] Deflection} Kg8 $1 {[%emt 0:00:22]} 27. Ne7+ {[%emt 0:00:06]} Kf8 {[%emt 0:00:05] [#] And now ...Nf4 would win.} 28. Nf5 $1 {[%emt 0:00:04] N3h4 is the strong threat.} Nd5 {[%emt 0:01:58]} 29. Qf2 {[%emt 0:03:11]} Qb3 {[%emt 0:02:40]} (29... a5 $142 30. Bc1 Ra6) 30. Be4 {[%emt 0:02:07]} Rab8 {[%emt 0:00:37]} 31. Rab1 {[%emt 0:11:00]} b4 {[%emt 0:07:23]} 32. axb4 {[%emt 0:01:26]} Rxb4 {[%emt 0:02:45] [#]} 33. Ba1 {[%emt 0:00:12]} (33. Qh4 $1 $18 Qc4 34. Rfe1 (34. Bxd5 Qxd5 35. Ne1 Rb3 $11)) 33... Qa4 $16 {[%emt 0:02:13]} 34. Rbe1 {[%emt 0:02:10][%cal Of5h6] aiming for Nxh6!} Nf6 $2 {[%emt 0:05:57]} (34... Bb5 $16) 35. Bc2 {[%emt 0:00:36]} Qa2 {[%emt 0:00:47]} 36. Bc3 {[%emt 0:04:22]} Rbb8 {[%emt 0:01:26]} (36... Ba4 37. Ne3 Bxc2 38. Bxb4 a5) 37. Ne3 $2 {[%emt 0:03:42]} (37. Nxg7 $18 Nxg7 38. Nh4 (38. Qe2 Bb5 $17)) 37... Qa3 $2 {[%emt 0:03:30]} (37... Bf4 $16 {was necessary.} 38. Ra1 {[%mdl 64] Trapped Piece} Bxe3 39. Rxa2 Bxf2 40. Rxf2 Bc6) 38. Ba1 {[%emt 0:01:55][%cal Od4d5] Black must now prevent d5!} Qa2 {[%emt 0:11:29]} 39. Qh4 {[%emt 0:00:57]} (39. d5 $18 {has better winning chances.} Nxd5 40. Nf5) 39... Bc6 $2 {[%emt 0:02:46][%mdl 8192]} (39... Ba5 $16) 40. Ne5 $2 {[%emt 0:00:37]} ({Only move:} 40. d5 $18 Rxd5 41. Bxf6 Rxc5 42. Be7+ Kg8 43. Bxc5 Bxf3 44. Rxf3 Nxc5 45. Qe7) 40... Bxe5 $15 {[%emt 0:01:37]} 41. dxe5 {[%emt 0:02:15]} Nd5 $36 {[%emt 0:00:29][%mdl 2048] Black is more active.} 42. Nxd5 {[%emt 0:09:07]} Qxc2 {[%emt 0:09:34]} (42... Rxd5 $15 43. Qf2 Rb7) 43. Qe7+ $11 {[%emt 0:04:35]} ({Don't go for} 43. Rxf7+ $2 Kxf7 44. Qe7+ Kg8 45. Qxe6+ Kh8 $19) 43... Kg8 {[%emt 0:00:03]} 44. Qxf7+ {[%emt 0:00:42]} Kh8 {[%emt 0:00:04]} 45. Qxe6 {[%emt 0:05:49]} Bxd5 {[%emt 0:00:58][%csl Gd5][%cal Rc2g2]} 46. Qg4 {[%emt 0:00:04] Threatens to win with e6.} Rb4 $1 {[%emt 0:02:15][%mdl 64] Deflection} 47. Qg3 {[%emt 0:00:02]} (47. Qxb4 $2 Qxg2#) 47... Be6 {[%emt 0:08:58]} 48. Rc1 {[%emt 0:01:00]} Qa2 {[%emt 0:01:01] ...Rg4 would be deadly.} 49. c6 {[%emt 0:01:51]} (49. h3 $5 {[%cal Rc5c6]}) 49... Rc4 {[%emt 0:04:54] The position is equal.} (49... Rg4 $5 50. c7 $8 Rc8 $11) 50. h3 {[%emt 0:00:32] Threatening Qg6.} Qa6 {[%emt 0:04:53]} 51. c7 {[%emt 0:02:32]} Rxc7 {[%emt 0:01:28][%mdl 64] Deflection} 52. Rxc7 {[%emt 0:00:06][%csl Gc7][%cal Rg3g7]} Qxf1+ {[%emt 0:00:04]} 53. Kh2 {[%emt 0:00:01][%csl Gc7][%cal Rg3g7]} Qf8 {[%emt 0:00:42]} (53... Qxa1 $2 54. Qxg7#) 54. Rxa7 {[%emt 0:02:45]} Ra8 {[%emt 0:02:53]} 55. Rxa8 {[%emt 0:02:07]} Qxa8 {[%emt 0:00:09]} 56. Qg6 {[%emt 0:00:12]} Qg8 {[%emt 0:01:09]} 57. Bd4 {[%emt 0:00:24]} Qf7 {[%emt 0:00:46]} 58. Qe4 {[%emt 0:00:37]} Bd5 {[%emt 0:00:21]} 59. Qe3 {[%emt 0:00:39]} Be6 {[%emt 0:00:13]} 60. Qe4 {[%emt 0:00:12] Blacks defense is rewarded with a draw. A fantastic game!   Weighted Error Value: White=0.54/Black=0.35} 1/2-1/2

[Event "ETCC Open 2023"]
[Site "Budva"]
[Date "2023.11.14"]
[Round "4.58"]
[White "Mehmeti, Dritan"]
[Black "Blomqvist, Erik"]
[Result "0-1"]
[ECO "D19"]
[WhiteElo "2377"]
[BlackElo "2520"]
[Annotator "ChessBase"]
[PlyCount "90"]
[EventDate "2023.11.10"]
[EventType "team-tourn"]
[EventCountry "MNE"]
[SourceTitle "playchess.com"]
[Source "ChessBase"]
[SourceQuality "1"]
[WhiteTeam "Albania"]
[BlackTeam "Sweden"]
[WhiteTeamCountry "ALB"]
[BlackTeamCountry "SWE"]
[TimeControl "40/5400+30:1800+30"]

1. d4 {[%emt 0:00:03]} d5 {[%emt 0:00:08]} 2. Nf3 {[%emt 0:00:29]} Nf6 {[%emt 0:00:20]} 3. c4 {[%emt 0:01:25]} c6 {[%emt 0:00:14]} 4. Nc3 {[%emt 0:02:50]} dxc4 {[%emt 0:00:15]} 5. a4 {[%emt 0:00:34]} Bf5 {[%emt 0:00:08]} 6. e3 {[%emt 0:00:32]} e6 {[%emt 0:00:09]} 7. Bxc4 {[%emt 0:00:12]} Bb4 {[%emt 0:00:11]} 8. O-O {[%emt 0:00:06]} O-O {[%emt 0:00:23]} 9. Qe2 {[%emt 0:00:09]} Bg6 {[%emt 0:00:33]} 10. Ne5 {[%emt 0:03:26]} Nbd7 {[%emt 0:00:34]} 11. Nxg6 {[%emt 0:00:40]} hxg6 {[%emt 0:00:08]} 12. Rd1 {[%emt 0:02:39]} Qc7 {[%emt 0:00:59]} 13. Bd2 {[%emt 0:04:01]} a5 {[%emt 0:00:37]} 14. Qf3 {[%emt 0:08:50]} Rad8 {[%emt 0:05:24]} 15. Ne4 {[%emt 0:03:29]} Bxd2 {[%emt 0:02:32]} 16. Rxd2 {[%emt 0:05:16]} Nxe4 {[%emt 0:02:25]} 17. Qxe4 {[%emt 0:00:06]} Qb6 {[%emt 0:07:09]} 18. Rad1 {[%emt 0:02:45]} Qb4 {[%emt 0:04:31]} 19. Qc2 {[%emt 0:03:11]} Nf6 {[%emt 0:09:42]} 20. Bb3 {[%emt 0:05:28]} Rd7 {[%emt 0:09:11]} 21. f3 {[%emt 0:07:38]} Rfd8 {[%emt 0:05:17]} 22. Qc3 {[%emt 0:01:24]} Qb6 {[%emt 0:01:53]} 23. Rd3 {[%emt 0:04:42]} g5 {[%emt 0:02:55]} 24. g4 {[%emt 0:03:56]} Rd6 {[%emt 0:05:55]} 25. Kg2 {[%emt 0:05:12]} Nd7 {[%emt 0:03:45]} 26. Bc2 {[%emt 0:11:24]} Nb8 {[%emt 0:02:02]} 27. R3d2 {[%emt 0:02:21]} Na6 {[%emt 0:00:41]} 28. Be4 {[%emt 0:01:27]} Nb4 {[%emt 0:00:52]} 29. Kg3 {[%emt 0:00:57]} Qc7 {[%emt 0:05:13]} 30. f4 {[%emt 0:00:44]} Nd5 {[%emt 0:09:54]} 31. Bxd5 {[%emt 0:00:38]} exd5 {[%emt 0:00:32]} 32. Rf1 {[%emt 0:05:23]} Re8 {[%emt 0:01:30]} 33. Rf3 {[%emt 0:00:51]} Re4 {[%emt 0:03:01]} 34. h4 {[%emt 0:01:37]} gxh4+ {[%emt 0:05:09]} 35. Kxh4 {[%emt 0:00:09]} Rh6+ {[%emt 0:04:41]} 36. Kg3 {[%emt 0:00:07]} g5 {[%emt 0:01:08]} 37. Rg2 {[%emt 0:04:47]} Qd6 {[%emt 0:04:49]} 38. Qd2 {[%emt 0:01:45]} Rh4 {[%emt 0:03:49]} 39. Kf2 {[%emt 0:04:42]} b6 {[%emt 0:00:15]} 40. Qc1 {[%emt 0:02:47]} c5 {[%emt 0:00:44]} 41. dxc5 {[%emt 0:15:00]} bxc5 {[%emt 0:00:36]} 42. b3 {[%emt 0:00:18]} d4 {[%emt 0:02:03]} 43. fxg5 {[%emt 0:04:38]} dxe3+ {[%emt 0:02:14]} 44. Rxe3 {[%emt 0:01:50]} Qf4+ {[%emt 0:00:49]} 45. Ke2 {[%emt 0:00:09]} Rh3 {[%emt 0:00:25]} 0-1

[Event "ETCC Open 2023"]
[Site "Budva"]
[Date "2023.11.14"]
[Round "4.59"]
[White "Hillarp Persson, Tiger"]
[Black "Ashiku, Franc"]
[Result "1/2-1/2"]
[ECO "D00"]
[WhiteElo "2502"]
[BlackElo "2396"]
[Annotator "ChessBase"]
[PlyCount "114"]
[EventDate "2023.11.10"]
[EventType "team-tourn"]
[EventCountry "MNE"]
[SourceTitle "playchess.com"]
[Source "ChessBase"]
[SourceQuality "1"]
[WhiteTeam "Sweden"]
[BlackTeam "Albania"]
[WhiteTeamCountry "SWE"]
[BlackTeamCountry "ALB"]
[TimeControl "40/5400+30:1800+30"]

1. d4 {[%emt 0:00:03]} d5 {[%emt 0:00:30]} 2. Bf4 {[%emt 0:01:06]} e6 {[%emt 0:00:42]} 3. e3 {[%emt 0:01:06]} c5 {[%emt 0:00:11]} 4. c3 {[%emt 0:00:25]} Nc6 {[%emt 0:00:31]} 5. Nd2 {[%emt 0:01:24]} Bd6 {[%emt 0:05:56]} 6. Bxd6 {[%emt 0:06:37]} Qxd6 {[%emt 0:00:06]} 7. Qg4 {[%emt 0:00:21]} g6 {[%emt 0:03:08]} 8. Ngf3 {[%emt 0:00:52]} f6 {[%emt 0:15:52]} 9. Qg3 {[%emt 0:17:14]} Qxg3 {[%emt 0:03:12]} 10. hxg3 {[%emt 0:00:06]} cxd4 {[%emt 0:00:16]} 11. exd4 {[%emt 0:00:11]} Nge7 {[%emt 0:03:52]} 12. g4 {[%emt 0:02:27]} g5 {[%emt 0:06:37]} 13. O-O-O {[%emt 0:16:49]} Kf7 {[%emt 0:02:41]} 14. Be2 {[%emt 0:03:18]} Bd7 {[%emt 0:10:22]} 15. Nf1 {[%emt 0:03:09]} h6 {[%emt 0:02:28]} 16. Ne3 {[%emt 0:02:03]} Rad8 {[%emt 0:01:22]} 17. g3 {[%emt 0:03:12]} Kg7 {[%emt 0:01:40]} 18. Ne1 {[%emt 0:01:31]} Nc8 {[%emt 0:02:17]} 19. f4 {[%emt 0:02:59]} Nd6 {[%emt 0:02:44]} 20. Bf3 {[%emt 0:00:42]} Ne7 {[%emt 0:01:12]} 21. Nd3 {[%emt 0:03:19]} b6 {[%emt 0:00:13]} 22. Rde1 {[%emt 0:00:21]} Ng6 {[%emt 0:05:06]} 23. Nd1 {[%emt 0:13:00]} Ne4 {[%emt 0:02:10]} 24. Rhg1 {[%emt 0:00:51]} Bb5 {[%emt 0:03:12]} 25. Bxe4 {[%emt 0:02:38]} dxe4 {[%emt 0:00:14]} 26. N3f2 {[%emt 0:00:20]} gxf4 {[%emt 0:04:55]} 27. Rxe4 {[%emt 0:02:48]} e5 {[%emt 0:00:19]} 28. gxf4 {[%emt 0:05:05]} Nxf4 {[%emt 0:01:10]} 29. dxe5 {[%emt 0:03:04]} Ne2+ {[%emt 0:01:16]} 30. Rxe2 {[%emt 0:00:08]} Bxe2 {[%emt 0:00:04]} 31. exf6+ {[%emt 0:00:13]} Kxf6 {[%emt 0:00:42]} 32. Ne3 {[%emt 0:03:24]} Kg5 {[%emt 0:02:32]} 33. Nh3+ {[%emt 0:01:12]} Kh4 {[%emt 0:05:31]} 34. Nf4 {[%emt 0:00:08]} Rhe8 {[%emt 0:03:54]} 35. Nf5+ {[%emt 0:00:26]} Kg5 {[%emt 0:00:05]} 36. Nh3+ {[%emt 0:00:08]} Kg6 {[%emt 0:02:38]} 37. Nf4+ {[%emt 0:00:15]} Kg5 {[%emt 0:03:51]} 38. Nh3+ {[%emt 0:00:51]} Kg6 {[%emt 0:00:13]} 39. Nf4+ {[%emt 0:01:55]} Kg5 {[%emt 0:04:06]} 40. Nh3+ {[%emt 0:00:12]} Kg6 {[%emt 0:00:51]} 41. Nf4+ {[%emt 0:13:13]} Kf6 {[%emt 0:08:07]} 42. Nxh6 {[%emt 0:01:22]} Rd1+ {[%emt 0:01:17]} 43. Rxd1 {[%emt 0:00:09]} Bxd1 {[%emt 0:00:06]} 44. Nd5+ {[%emt 0:03:19]} Kg6 {[%emt 0:00:41]} 45. Kxd1 {[%emt 0:00:33]} Kxh6 {[%emt 0:01:38]} 46. Kc2 {[%emt 0:01:10]} Kg5 {[%emt 0:02:33]} 47. b4 {[%emt 0:07:16]} Rd8 {[%emt 0:02:05]} 48. c4 {[%emt 0:01:57]} Kxg4 {[%emt 0:00:53]} 49. Kb3 {[%emt 0:00:42]} Kf5 {[%emt 0:01:39]} 50. Ka4 {[%emt 0:00:51]} Ke5 {[%emt 0:01:53]} 51. Kb5 {[%emt 0:00:36]} Kd4 {[%emt 0:01:14]} 52. Ne7 {[%emt 0:02:33]} a6+ {[%emt 0:01:49]} 53. Kxb6 {[%emt 0:02:33]} Kxc4 {[%emt 0:00:21]} 54. Nc6 {[%emt 0:01:09]} Rd6 {[%emt 0:01:17]} 55. a4 {[%emt 0:00:17]} Rxc6+ {[%emt 0:00:07]} 56. Kxc6 {[%emt 0:00:06]} Kxb4 {[%emt 0:00:03]} 57. a5 {[%emt 0:00:20]} Kxa5 {[%emt 0:00:52]} 1/2-1/2